bitfinex/quotes_BTCUSD_20250527
["timestamp","ask_amount","ask_price","bid_price","bid_amount"]
[1748358355602,0.20176042,109100.0,109090.0,1.43477748]
[1748358355844,0.20176042,109100.0,109090.0,1.44394397]
[1748358355845,0.2109636,109100.0,109090.0,1.44394397]
[1748358356084,0.2201295,109100.0,109090.0,1.49238261]
[1748358356312,0.0001487,109100.0,109090.0,1.94176911]
[1748358356535,0.0001487,109100.0,109090.0,4.33615196]
[1748358356797,0.0011487,109100.0,109090.0,4.33615196]
[1748358357244,0.00862206,109120.0,109090.0,4.86182084]
[1748358357491,0.00862206,109120.0,109110.0,1.14900514]
[1748358357725,0.00862206,109120.0,109110.0,4.67056204]
[1748358357963,0.01778561,109120.0,109110.0,4.67056204]
[1748358358239,0.00911764,109120.0,109110.0,4.67056204]
[1748358358497,0.00911764,109120.0,109110.0,4.69804204]
[1748358358725,0.00911764,109120.0,109110.0,4.70204204]
[1748358358951,0.01832273,109150.0,109140.0,0.18325087]
[1748358359158,0.00916094,109150.0,109140.0,3.16345167]
[1748358359391,0.01847073,109150.0,109140.0,3.56116147]
[1748358359610,0.2200283,109150.0,109140.0,3.32331452]
[1748358359838,0.20170582,109150.0,109140.0,1.20534112]
[1748358360059,0.02748862,109130.0,109120.0,0.79124506]
[1748358360317,0.02748853,109130.0,109120.0,4.22615164]
[1748358360528,0.02748636,109140.0,109130.0,3.21114578]
[1748358360770,0.21989977,109140.0,109130.0,1.97637483]
[1748358360993,0.20157578,109140.0,109130.0,0.31833095]
[1748358361873,0.20157578,109140.0,109130.0,0.33423295]
[1748358362121,0.20157578,109140.0,109130.0,0.09105395]
[1748358362348,0.001,109130.0,109120.0,0.85120137]
[1748358362574,0.20259425,109130.0,109120.0,2.01592662]
[1748358362786,0.20159425,109130.0,109120.0,1.71250157]
[1748358362993,0.20159425,109130.0,109120.0,1.72166579]
[1748358363211,0.19243104,109130.0,109120.0,1.49206207]
[1748358363441,0.19243104,109130.0,109120.0,1.68451074]
[1748358363654,0.19243104,109130.0,109120.0,1.69367487]
[1748358363860,0.19343104,109130.0,109120.0,1.69367487]
[1748358364072,0.19343104,109130.0,109120.0,1.70283892]
[1748358364496,0.19343104,109130.0,109120.0,1.69367487]
[1748358364729,0.19343104,109130.0,109120.0,1.38888807]
[1748358364937,0.19343104,109130.0,109120.0,1.39088807]
[1748358365146,0.19343104,109130.0,109120.0,1.58333665]
[1748358365421,0.19343104,109130.0,109120.0,1.98333665]
[1748358366073,0.19343104,109130.0,109120.0,1.99250062]
[1748358366291,0.01932549,109130.0,109120.0,3.69817608]
[1748358366508,0.01932533,109130.0,109120.0,3.71271693]
[1748358366952,0.0284882,109130.0,109120.0,4.00921693]
[1748358367164,0.0284882,109130.0,109120.0,4.74643093]
[1748358367410,0.01932533,109130.0,109120.0,4.74643093]
[1748358367640,0.01016262,109130.0,109120.0,4.74643093]
[1748358367921,0.01932541,109130.0,109120.0,4.66199293]
[1748358368167,0.20259417,109130.0,109120.0,2.61285047]
[1748358368409,0.20259417,109130.0,109120.0,2.99325337]
[1748358368629,0.20259417,109130.0,109120.0,2.69729337]
[1748358369141,0.019326,109130.0,109120.0,2.72579337]
[1748358369356,0.18325087,109140.0,109130.0,0.781899]
[1748358369558,0.18325087,109140.0,109130.0,1.65337952]
[1748358369965,0.18325087,109140.0,109130.0,1.21752552]
[1748358370145,0.18325087,109140.0,109130.0,0.500722]
[1748358370396,0.19170435,109140.0,109130.0,0.391468]
[1748358370543,0.19243087,109130.0,109120.0,0.79867819]
[1748358370729,0.201594,109130.0,109120.0,1.50980819]
[1748358371576,0.201594,109130.0,109120.0,4.38715465]
[1748358371788,0.201594,109130.0,109120.0,4.38715474]
[1748358371999,0.19243087,109130.0,109120.0,4.19470607]
[1748358372318,0.20088443,109130.0,109120.0,4.37799052]
[1748358372562,0.19243087,109130.0,109120.0,4.19470607]
[1748358372696,0.20188467,109130.0,109120.0,4.19470607]
[1748358372902,0.19343087,109130.0,109120.0,4.19470607]
[1748358373402,0.19343087,109130.0,109120.0,4.22230607]
[1748358373982,0.19343087,109130.0,109120.0,4.09978607]
[1748358374146,0.19343087,109130.0,109120.0,1.81606519]
[1748358374732,0.19343087,109130.0,109120.0,1.98882319]
[1748358374939,0.19343087,109130.0,109120.0,2.51449207]
[1748358375355,0.20188484,109130.0,109120.0,2.51449207]
[1748358375765,0.20188484,109130.0,109120.0,3.36857007]
[1748358376214,0.20188484,109130.0,109120.0,3.39597007]
[1748358376221,0.20188484,109130.0,109120.0,3.71563648]
[1748358376222,0.01790793,109130.0,109120.0,3.71563648]
[1748358376640,0.00916162,109150.0,109140.0,0.1924129]
[1748358376648,0.20155715,109150.0,109140.0,2.0144484]
[1748358376925,0.1923957,109150.0,109140.0,1.38239799]
[1748358377099,0.1923957,109150.0,109140.0,0.73131211]
[1748358377696,0.1923957,109150.0,109140.0,0.92372552]
[1748358377905,0.1933957,109150.0,109140.0,0.92372552]
[1748358378128,0.1933957,109150.0,109140.0,0.73131211]
[1748358378576,0.1933957,109150.0,109140.0,0.92372552]
[1748358378865,0.1963957,109150.0,109140.0,1.22938797]
[1748358379592,0.1963957,109150.0,109140.0,1.75505685]
[1748358380087,0.21471876,109150.0,109140.0,1.77338134]
[1748358380295,0.21471876,109150.0,109140.0,1.78254337]
[1748358380987,0.004,109150.0,109140.0,1.90059673]
[1748358381197,0.004,109150.0,109140.0,4.01509273]
[1748358382519,0.004,109150.0,109140.0,4.04256573]
[1748358382697,0.004,109150.0,109140.0,4.01509273]
[1748358383449,0.18520118,109170.0,109140.0,4.01509273]
[1748358383450,0.002,109170.0,109160.0,0.26299886]
[1748358383729,0.21064106,109190.0,109180.0,0.19234283]
[1748358383912,0.19234291,109180.0,109170.0,0.82216888]
[1748358384107,0.19234291,109180.0,109170.0,1.36474351]
[1748358384346,0.19234291,109180.0,109170.0,1.80225853]
[1748358384530,0.21984291,109180.0,109170.0,0.39142]
[1748358384962,0.21984291,109180.0,109170.0,0.516391]
[1748358385432,0.21984291,109180.0,109170.0,0.831271]
[1748358385627,0.21984291,109180.0,109170.0,0.832271]
[1748358385825,0.21984291,109180.0,109170.0,0.92332495]
[1748358386044,0.22084291,109180.0,109170.0,0.92332495]
[1748358386270,0.22084291,109180.0,109170.0,0.832271]
[1748358386917,0.001,109180.0,109170.0,0.535771]
[1748358387121,0.001,109180.0,109170.0,2.8432704]
[1748358387320,0.001,109180.0,109170.0,3.4639304]
[1748358388016,0.01015851,109180.0,109170.0,3.4639304]
[1748358388272,0.001,109180.0,109170.0,4.43737535]
[1748358389492,0.001,109180.0,109170.0,4.7919162]
[1748358389639,0.001,109180.0,109170.0,5.17737535]
[1748358389864,0.001,109180.0,109170.0,4.78669535]
[1748358390076,0.01931735,109180.0,109170.0,4.78669535]
[1748358390282,0.01931735,109180.0,109170.0,5.04236735]
[1748358390701,0.20163397,109190.0,109180.0,0.19234283]
[1748358390904,0.20163397,109190.0,109180.0,2.32640694]
[1748358391113,0.20163397,109190.0,109180.0,0.23441194]
[1748358391341,0.20163397,109190.0,109180.0,2.36536995]
[1748358391810,0.20163397,109190.0,109180.0,2.35416995]
[1748358392227,0.20363397,109190.0,109180.0,2.35416995]
[1748358392480,0.20463397,109190.0,109180.0,2.89475295]
[1748358392670,0.20463397,109190.0,109180.0,2.90391171]
[1748358392900,0.20463397,109190.0,109180.0,3.58289313]
[1748358392901,0.00314856,109190.0,109180.0,3.58289313]
[1748358393113,0.03062191,109190.0,109180.0,3.98289313]
[1748358393351,0.03062191,109190.0,109180.0,3.70715013]
[1748358393578,0.01130615,109190.0,109180.0,3.70715013]
[1748358393834,0.02046399,109190.0,109180.0,4.10715013]
[1748358394086,0.029622,109190.0,109180.0,4.10715013]
[1748358394308,0.02046391,109190.0,109180.0,4.10715013]
[1748358394590,0.02962183,109190.0,109180.0,4.10715013]
[1748358394801,0.0459381,109190.0,109180.0,3.61585713]
[1748358395029,0.04593802,109190.0,109180.0,3.61585713]
[1748358395356,0.22910497,109190.0,109180.0,3.10035794]
[1748358395596,0.2016317,109190.0,109180.0,2.43269897]
[1748358395804,0.19247369,109190.0,109180.0,2.13705897]
[1748358396025,0.19247369,109190.0,109180.0,2.02441797]
[1748358396257,0.19247369,109190.0,109180.0,2.05189468]
[1748358396486,0.19247369,109190.0,109180.0,2.42494408]
[1748358396709,0.19247369,109190.0,109180.0,2.43410284]
[1748358397400,0.20163161,109190.0,109180.0,1.14428284]
[1748358397659,0.20163161,109190.0,109180.0,2.5873883]
[1748358397660,0.21078987,109190.0,109180.0,2.5873883]
[1748358397895,0.21079029,109190.0,109180.0,2.32198279]
[1748358398142,0.21079029,109190.0,109180.0,2.33114122]
[1748358398589,0.19379029,109190.0,109180.0,2.26539622]
[1748358398828,0.19379029,109190.0,109180.0,1.75368084]
[1748358399302,0.19379029,109190.0,109180.0,1.58057484]
[1748358399585,0.20225387,109190.0,109180.0,1.45923984]
[1748358399793,0.19379029,109190.0,109180.0,1.45923984]
[1748358400026,0.19379029,109190.0,109180.0,1.25067684]
[1748358400276,0.2022544,109190.0,109180.0,1.34551684]
[1748358400542,0.19379029,109190.0,109180.0,1.34551684]
[1748358400784,0.19379029,109190.0,109180.0,0.680546]
[1748358401055,0.22099029,109190.0,109180.0,0.775386]
[1748358401327,0.22099029,109190.0,109180.0,0.680546]
[1748358401542,0.22099029,109190.0,109180.0,0.775386]
[1748358401771,0.19379029,109190.0,109180.0,0.775386]
[1748358402051,0.19379029,109190.0,109180.0,0.86643995]
[1748358403891,0.19379029,109190.0,109180.0,1.38962368]
[1748358404108,0.19379029,109190.0,109180.0,1.91529256]
[1748358404370,0.19379029,109190.0,109180.0,1.93361033]
[1748358404931,0.19379029,109190.0,109180.0,1.92445157]
[1748358405440,0.18463203,109190.0,109180.0,1.62795157]
[1748358405788,0.05,109200.0,109190.0,0.6030409]
[1748358406013,0.05,109200.0,109190.0,1.26874857]
[1748358406305,0.05915683,109200.0,109190.0,4.05616657]
[1748358406620,0.05915683,109200.0,109190.0,3.83424357]
[1748358406746,0.07747083,109200.0,109190.0,3.83424357]
[1748358407024,0.07747092,109200.0,109190.0,4.43458757]
[1748358407274,0.07747075,109200.0,109190.0,4.43458757]
[1748358407500,0.07747075,109200.0,109190.0,4.43758757]
[1748358407745,0.08662792,109200.0,109190.0,4.81168757]
[1748358408030,0.09578526,109200.0,109190.0,4.81168757]
[1748358408212,0.07747075,109200.0,109190.0,4.51612757]
[1748358408471,0.08662792,109200.0,109190.0,4.51612757]
[1748358408700,0.08662783,109200.0,109190.0,4.51812757]
[1748358408926,0.27893535,109200.0,109190.0,4.39678757]
[1748358409159,0.2514646,109200.0,109190.0,1.043595]
[1748358409376,0.2514646,109200.0,109190.0,1.23592029]
[1748358409618,0.24230752,109200.0,109190.0,1.043595]
[1748358409843,0.24230752,109200.0,109190.0,1.040595]
[1748358410089,0.24230752,109200.0,109190.0,1.042595]
[1748358410526,0.24230752,109200.0,109190.0,1.040595]
[1748358410959,0.24230752,109200.0,109190.0,1.041595]
[1748358411199,0.24230752,109200.0,109190.0,0.701595]
[1748358411680,0.24230752,109200.0,109190.0,1.041595]
[1748358411882,0.24230752,109200.0,109190.0,0.907169]
[1748358412331,0.24230752,109200.0,109190.0,0.99822295]
[1748358412581,0.22530752,109200.0,109190.0,0.99822295]
[1748358413504,0.22530752,109200.0,109190.0,0.65522295]
[1748358414137,0.05131442,109200.0,109190.0,0.91304588]
[1748358414342,0.06047092,109200.0,109190.0,3.02617964]
[1748358414585,0.06047092,109200.0,109190.0,3.05397964]
[1748358414586,0.05131375,109200.0,109190.0,3.05397964]
[1748358414812,0.05131383,109200.0,109190.0,3.45397964]
[1748358415034,0.05131391,109200.0,109190.0,3.45397964]
[1748358415281,0.06047092,109200.0,109190.0,2.41342576]
[1748358415518,0.06047092,109200.0,109190.0,3.27909464]
[1748358415735,0.069628,109200.0,109190.0,3.57457464]
[1748358415934,0.06962792,109200.0,109190.0,3.57457464]
[1748358416612,0.06047075,109200.0,109190.0,4.23049564]
[1748358416811,0.06962792,109200.0,109190.0,4.17863664]
[1748358417445,0.06962792,109200.0,109190.0,4.28322164]
[1748358418169,0.06962792,109200.0,109190.0,4.10151964]
[1748358418640,0.06962792,109200.0,109190.0,4.31613164]
[1748358418892,0.06047075,109200.0,109190.0,4.31613164]
[1748358419162,0.05131375,109200.0,109190.0,4.31613164]
[1748358419359,0.06047083,109200.0,109190.0,4.31613164]
[1748358419561,0.06047083,109200.0,109190.0,4.78892264]
[1748358419834,0.04347083,109200.0,109190.0,4.78892264]
[1748358420306,0.016,109200.0,109190.0,4.87997659]
[1748358422143,0.016,109200.0,109190.0,4.89451744]
[1748358422372,0.016,109200.0,109190.0,5.68001744]
[1748358423097,0.26559219,109230.0,109220.0,0.34]
[1748358423098,0.07326404,109230.0,109220.0,0.34]
[1748358423313,0.10072741,109230.0,109220.0,2.85726183]
[1748358423513,0.11037741,109230.0,109220.0,1.21995683]
[1748358423719,0.11037741,109230.0,109220.0,3.34651078]
[1748358423720,0.09206776,109230.0,109220.0,3.34651078]
[1748358424146,0.10122233,109230.0,109220.0,3.34651078]
[1748358424386,0.1205318,109230.0,109220.0,3.34651078]
[1748358424592,0.12053248,109230.0,109220.0,3.53712678]
[1748358424824,0.30363236,109230.0,109220.0,3.53481478]
[1748358425098,0.27616874,109230.0,109220.0,2.17498072]
[1748358425288,0.27616874,109230.0,109220.0,1.93611055]
[1748358425473,0.27616874,109230.0,109220.0,1.92695472]
[1748358425956,0.27616874,109230.0,109220.0,2.11007136]
[1748358426280,0.27616874,109230.0,109220.0,2.38592172]
[1748358426479,0.27616874,109230.0,109220.0,1.256192]
[1748358426715,0.33136874,109230.0,109220.0,1.256192]
[1748358426948,0.31436874,109230.0,109220.0,1.256192]
[1748358427078,0.31436874,109230.0,109220.0,0.799783]
[1748358427306,0.31436874,109230.0,109220.0,0.705063]
[1748358428134,0.25916874,109230.0,109220.0,1.32707495]
[1748358428410,0.2029047,109230.0,109220.0,1.32707495]
[1748358429134,0.2029047,109230.0,109220.0,1.62357495]
[1748358429684,0.2029047,109230.0,109220.0,1.81584742]
[1748358430097,0.2029047,109230.0,109220.0,1.91052742]
[1748358430297,0.2029047,109230.0,109220.0,1.71825495]
[1748358430703,0.2029047,109230.0,109220.0,1.91052742]
[1748358431090,0.19374988,109230.0,109220.0,1.71825495]
[1748358432221,0.19374988,109230.0,109220.0,1.90137159]
[1748358432431,0.20290453,109230.0,109220.0,1.91968308]
[1748358432631,0.22121383,109230.0,109220.0,1.95663857]
[1748358432843,0.21205943,109230.0,109220.0,1.95663857]
[1748358433443,0.00149509,109230.0,109220.0,1.71828476]
[1748358433644,0.00149509,109230.0,109220.0,4.49372376]
[1748358433854,0.19223693,109240.0,109230.0,0.21056384]
[1748358434062,0.02760975,109240.0,109230.0,4.32513311]
[1748358434269,0.01845552,109240.0,109230.0,4.71268706]
[1748358434499,0.00014847,109240.0,109230.0,4.71268706]
[1748358434716,0.00930195,109240.0,109230.0,4.71268706]
[1748358434946,0.00014847,109240.0,109230.0,4.71268706]
[1748358435344,0.00014847,109240.0,109230.0,5.06722791]
[1748358435698,0.00114847,109240.0,109230.0,5.06722791]
[1748358435899,0.00214847,109240.0,109230.0,5.06722791]
[1748358436304,0.00114847,109240.0,109230.0,5.06722791]
[1748358436552,0.00014847,109240.0,109230.0,5.06722791]
[1748358436769,0.00014847,109240.0,109230.0,5.06922791]
[1748358439170,0.002,109250.0,109240.0,0.55054456]
[1748358439345,0.002,109250.0,109240.0,4.08736034]
[1748358439346,0.00181154,109250.0,109240.0,4.08736034]
[1748358439549,0.00181154,109250.0,109240.0,3.74736034]
[1748358442003,0.001,109250.0,109240.0,4.87720034]
[1748358442249,0.001,109250.0,109240.0,5.18824119]
[1748358442479,0.03660815,109260.0,109250.0,0.6053253]
[1748358442686,0.03660815,109260.0,109250.0,4.04647197]
[1748358442931,0.21965833,109260.0,109250.0,3.72186732]
[1748358443141,0.21965833,109260.0,109250.0,4.04647213]
[1748358443352,0.01830403,109260.0,109250.0,4.44647213]
[1748358443631,0.21965842,109260.0,109250.0,4.44647221]
[1748358443842,0.21050594,109260.0,109250.0,4.45562502]
[1748358444486,0.03660873,109260.0,109250.0,4.45562502]
[1748358444699,0.22881081,109260.0,109250.0,4.44647221]
[1748358444912,0.22881081,109260.0,109250.0,1.68018602]
[1748358445348,0.21050678,109260.0,109250.0,3.90249738]
[1748358445559,0.20135447,109260.0,109250.0,2.96484072]
[1748358445775,0.20135447,109260.0,109250.0,2.96584072]
[1748358445991,0.20135447,109260.0,109250.0,3.24411972]
[1748358446202,0.20135447,109260.0,109250.0,3.43633939]
[1748358446416,0.19220208,109260.0,109250.0,3.43633939]
[1748358446628,0.1830496,109260.0,109250.0,3.24411972]
[1748358447057,0.1830496,109260.0,109250.0,3.84545239]
[1748358447279,0.1830496,109260.0,109250.0,3.88029839]
[1748358447495,0.1830496,109260.0,109250.0,4.39207862]
[1748358447711,0.1830496,109260.0,109250.0,4.58754562]
[1748358447919,0.1830496,109260.0,109250.0,3.44777662]
[1748358448138,0.1660496,109260.0,109250.0,3.15269662]
[1748358448356,0.1660496,109260.0,109250.0,3.83944262]
[1748358448624,0.1660496,109260.0,109250.0,4.30161868]
[1748358448860,0.1660496,109260.0,109250.0,4.32941868]
[1748358449507,0.1660496,109260.0,109250.0,4.33857157]
[1748358449724,0.1660496,109260.0,109250.0,4.63507157]
[1748358449947,0.00915206,109260.0,109250.0,4.72612452]
[1748358450170,0.027456,109260.0,109250.0,4.74407146]
[1748358450812,0.01830378,109260.0,109250.0,4.74407146]
[1748358451030,0.01115105,109270.0,109260.0,0.21965816]
[1748358451243,0.01115088,109270.0,109260.0,4.41857394]
[1748358451472,0.01115088,109270.0,109260.0,4.44587394]
[1748358451473,0.02945307,109270.0,109260.0,4.44587394]
[1748358451695,0.02945307,109270.0,109260.0,5.18587394]
[1748358451912,0.01115105,109270.0,109260.0,5.18587394]
[1748358452131,0.02945341,109270.0,109260.0,5.18587394]
[1748358452358,0.03145341,109270.0,109260.0,5.18587394]
[1748358452574,0.02230219,109270.0,109260.0,5.18587394]
[1748358452818,0.02230227,109270.0,109260.0,5.18587394]
[1748358453024,0.02130227,109270.0,109260.0,5.18587394]
[1748358453238,0.02945366,109270.0,109260.0,5.18587394]
[1748358453491,0.02030227,109270.0,109260.0,5.18687394]
[1748358453717,0.02945366,109270.0,109260.0,5.18687394]
[1748358454182,0.22163815,109270.0,109260.0,5.17772205]
[1748358454410,0.02945366,109270.0,109260.0,5.18687394]
[1748358454633,0.02945366,109270.0,109260.0,5.15957394]
[1748358454634,0.02945357,109270.0,109260.0,5.15957394]
[1748358455096,0.02945357,109270.0,109260.0,5.18667394]
[1748358455328,0.01830219,109270.0,109260.0,5.17752146]
[1748358455783,0.02551525,109280.0,109270.0,0.21048702]
[1748358456007,0.04396459,109280.0,109270.0,3.42344879]
[1748358456300,0.24528221,109280.0,109270.0,3.42344879]
[1748358456519,0.24528221,109280.0,109270.0,3.82344879]
[1748358456942,0.24628221,109280.0,109270.0,3.82344879]
[1748358458497,0.05411531,109280.0,109270.0,3.82344879]
[1748358458956,0.05511531,109280.0,109270.0,3.82344879]
[1748358459380,0.23813141,109280.0,109270.0,3.82344879]
[1748358459597,0.05511531,109280.0,109270.0,3.82344879]
[1748358460046,0.22898069,109280.0,109270.0,3.72178179]
[1748358460259,0.24728221,109280.0,109270.0,3.72178179]
[1748358460537,0.24728221,109280.0,109270.0,3.69518179]
[1748358460974,0.24728221,109280.0,109270.0,3.72178179]
[1748358462073,0.04596459,109280.0,109270.0,3.72178179]
[1748358462293,0.22113141,109280.0,109270.0,3.72348179]
[1748358462511,0.03811531,109280.0,109270.0,3.72348179]
[1748358462735,0.22113191,109280.0,109270.0,3.45524202]
[1748358462947,0.22113191,109280.0,109270.0,4.02751326]
[1748358463169,0.20346603,109280.0,109270.0,0.89534484]
[1748358463390,0.25636603,109280.0,109270.0,0.59515584]
[1748358464115,0.21261591,109280.0,109270.0,1.3313114]
[1748358464373,0.22176671,109280.0,109270.0,1.3313114]
[1748358464858,0.02959981,109280.0,109270.0,1.34046245]
[1748358465079,0.21261591,109280.0,109270.0,1.34046245]
[1748358465336,0.03875061,109280.0,109270.0,1.34046245]
[1748358465545,0.00914854,109300.0,109290.0,0.21044824]
[1748358465763,0.02118734,109310.0,109300.0,0.85144444]
[1748358465983,0.03033504,109310.0,109300.0,1.84733494]
[1748358466198,0.02118709,109310.0,109300.0,1.84733494]
[1748358466423,0.01203939,109310.0,109300.0,1.83818632]
[1748358466641,0.039483,109310.0,109300.0,1.5920757]
[1748358467096,0.03033471,109310.0,109300.0,1.5920757]
[1748358467322,0.0486307,109310.0,109300.0,1.5920757]
[1748358467549,0.21330125,109310.0,109300.0,0.85597784]
[1748358468028,0.24040125,109310.0,109300.0,0.81399584]
[1748358468300,0.24040125,109310.0,109300.0,0.65147884]
[1748358468544,0.24140125,109310.0,109300.0,0.65147884]
[1748358468763,0.24240125,109310.0,109300.0,0.65147884]
[1748358469266,0.26940125,109310.0,109300.0,0.515944]
[1748358470202,0.26940125,109310.0,109300.0,0.43542208]
[1748358470443,0.26940125,109310.0,109300.0,0.52994208]
[1748358470925,0.26940125,109310.0,109300.0,0.52990208]
[1748358471667,0.21530125,109310.0,109300.0,0.52990208]
[1748358471922,0.21237108,109330.0,109320.0,0.34914745]
[1748358472153,0.20322505,109330.0,109320.0,1.370726]
[1748358472373,0.20337346,109330.0,109320.0,1.57813358]
[1748358472600,0.20337346,109330.0,109320.0,1.54213667]
[1748358472842,0.34592741,109330.0,109320.0,0.00616413]
[1748358473068,0.20126186,109310.0,109300.0,0.10847808]
[1748358473313,0.20126186,109310.0,109300.0,0.92797008]
[1748358473527,0.20126186,109310.0,109300.0,0.913972]
[1748358473768,0.20126186,109310.0,109300.0,1.19715769]
[1748358474025,0.19211399,109310.0,109300.0,1.19715769]
[1748358474223,0.18296587,109310.0,109300.0,1.34502595]
[1748358474920,0.18296587,109310.0,109300.0,1.34602595]
[1748358475153,0.23626587,109310.0,109300.0,0.915689]
[1748358475712,0.23626587,109310.0,109300.0,0.917689]
[1748358476674,0.23626587,109310.0,109300.0,0.93145281]
[1748358476914,0.20126186,109310.0,109300.0,1.54817564]
[1748358477137,0.20126228,109310.0,109300.0,0.92802676]
[1748358477387,0.20126228,109310.0,109300.0,1.2146385]
[1748358478111,0.20126228,109310.0,109300.0,1.22378754]
[1748358479052,0.20126228,109310.0,109300.0,1.12930754]
[1748358479240,0.20126228,109310.0,109300.0,1.74933642]
[1748358481276,0.19211416,109310.0,109300.0,1.74018738]
[1748358481502,0.19211416,109310.0,109300.0,1.64582738]
[1748358481762,0.19211416,109310.0,109300.0,1.20536937]
[1748358482002,0.24671416,109310.0,109300.0,0.45112381]
[1748358482491,0.24671416,109310.0,109300.0,0.56478881]
[1748358482748,0.19211416,109310.0,109300.0,1.12210824]
[1748358483014,0.19211416,109310.0,109300.0,1.30509085]
[1748358483247,0.19211416,109310.0,109300.0,1.40529393]
[1748358483680,0.02744395,109310.0,109300.0,3.88358276]
[1748358483900,0.03659132,109310.0,109300.0,3.9198313]
[1748358484135,0.03659132,109310.0,109300.0,4.03888525]
[1748358484356,0.03659132,109310.0,109300.0,4.33352525]
[1748358484576,0.21041015,109310.0,109300.0,4.49871275]
[1748358484790,0.21041015,109310.0,109300.0,4.50786179]
[1748358485001,0.20126228,109310.0,109300.0,4.51701092]
[1748358485224,0.20126228,109310.0,109300.0,4.50786188]
[1748358485479,0.00914779,109310.0,109300.0,4.53530801]
[1748358485696,0.1921114,109320.0,109310.0,0.21941416]
[1748358485921,0.2104099,109310.0,109300.0,0.90282021]
[1748358486135,0.21041015,109310.0,109300.0,3.84593559]
[1748358486353,0.21041015,109310.0,109300.0,1.86656785]
[1748358486601,0.2012622,109310.0,109300.0,2.01231385]
[1748358486828,0.2012622,109310.0,109300.0,2.35666085]
[1748358487040,0.2012622,109310.0,109300.0,2.4467148]
[1748358487483,0.21039107,109320.0,109310.0,0.18296587]
[1748358487723,0.21953802,109320.0,109310.0,2.07935424]
[1748358487929,0.21953802,109320.0,109310.0,3.53177608]
[1748358488143,0.21039107,109320.0,109310.0,3.53177608]
[1748358488569,0.21039107,109320.0,109310.0,3.51835208]
[1748358488782,0.21039107,109320.0,109310.0,3.52749995]
[1748358488975,0.21039107,109320.0,109310.0,3.79211795]
[1748358489181,0.24839659,109320.0,109310.0,0.549022]
[1748358489616,0.24839659,109320.0,109310.0,0.43436]
[1748358490035,0.18508081,109330.0,109320.0,2.07052926]
[1748358490036,0.19422692,109330.0,109320.0,2.07052926]
[1748358490245,0.20337346,109330.0,109320.0,0.924641]
[1748358490469,0.23137346,109330.0,109320.0,0.924641]
[1748358490685,0.21184107,109350.0,109340.0,0.00914561]
[1748358490918,0.24033558,109350.0,109340.0,1.09685945]
[1748358491125,0.24033558,109350.0,109340.0,1.09685937]
[1748358491336,0.02943482,109350.0,109340.0,1.11515]
[1748358491537,0.04772446,109350.0,109340.0,1.16413484]
[1748358491752,0.2306234,109350.0,109340.0,1.16413493]
[1748358491957,0.2397675,109350.0,109340.0,1.16413493]
[1748358492173,0.2214782,109350.0,109340.0,1.77157557]
[1748358492380,0.03343448,109350.0,109340.0,1.78072076]
[1748358492589,0.05172412,109350.0,109340.0,1.25845484]
[1748358492790,0.05172412,109350.0,109340.0,1.24930965]
[1748358493007,0.05172412,109350.0,109340.0,1.25845493]
[1748358493198,0.23962306,109350.0,109340.0,1.24930965]
[1748358493441,0.248768,109350.0,109340.0,1.24016421]
[1748358493648,0.21633443,109350.0,109340.0,1.18203367]
[1748358493890,0.21233443,109350.0,109340.0,1.20032498]
[1748358494099,0.01114569,109350.0,109340.0,4.46573288]
[1748358494378,0.01114569,109350.0,109340.0,4.86573288]
[1748358494379,0.02943432,109350.0,109340.0,4.86573288]
[1748358494586,0.23062265,109350.0,109340.0,4.53266164]
[1748358494832,0.23062265,109350.0,109340.0,4.96659228]
[1748358495045,0.23062265,109350.0,109340.0,4.96459228]
[1748358495250,0.04772363,109350.0,109340.0,4.96859169]
[1748358495462,0.03857885,109350.0,109340.0,4.96459169]
[1748358495676,0.04772363,109350.0,109340.0,4.96459169]
[1748358495887,0.04772363,109350.0,109340.0,4.96759169]
[1748358496313,0.05686849,109350.0,109340.0,4.9614465]
[1748358496524,0.23976818,109350.0,109340.0,4.95230122]
[1748358496730,0.23976818,109350.0,109340.0,4.92550122]
[1748358496911,0.23976818,109350.0,109340.0,4.9346465]
[1748358497057,0.0477243,109350.0,109340.0,4.94079169]
[1748358497268,0.0477243,109350.0,109340.0,4.94279169]
[1748358498575,0.02943466,109350.0,109340.0,4.94279169]
[1748358498779,0.03857944,109350.0,109340.0,4.94279169]
[1748358499168,0.23062332,109350.0,109340.0,4.42052577]
[1748358499397,0.23062332,109350.0,109340.0,4.8271171]
[1748358499615,0.23062332,109350.0,109340.0,4.83626229]
[1748358500021,0.21233435,109350.0,109340.0,4.79656849]
[1748358500228,0.21233435,109350.0,109340.0,4.8056741]
[1748358500430,0.21233435,109350.0,109340.0,4.81481963]
[1748358500675,0.02943499,109350.0,109340.0,4.44431026]
[1748358500877,0.22147887,109350.0,109340.0,4.83675026]
[1748358501298,0.22147887,109350.0,109340.0,4.83675043]
[1748358501505,0.02943499,109350.0,109340.0,4.83675043]
[1748358501719,0.22147879,109350.0,109340.0,4.31448451]
[1748358501959,0.22147879,109350.0,109340.0,4.82760507]
[1748358502161,0.23062373,109350.0,109340.0,4.82760507]
[1748358502578,0.23062373,109350.0,109340.0,4.81845963]
[1748358502783,0.22147921,109350.0,109340.0,4.82760507]
[1748358502996,0.22147921,109350.0,109340.0,4.81845963]
[1748358503212,0.22147921,109350.0,109340.0,4.82760507]
[1748358503412,0.22147921,109350.0,109340.0,4.8093141]
[1748358503620,0.22147921,109350.0,109340.0,4.22807887]
[1748358503830,0.21233443,109350.0,109340.0,1.62323692]
[1748358504240,0.21233443,109350.0,109340.0,2.66190959]
[1748358504452,0.21233443,109350.0,109340.0,2.67105529]
[1748358505070,0.21233443,109350.0,109340.0,2.47899392]
[1748358505282,0.20318957,109350.0,109340.0,4.18807454]
[1748358505485,0.20318957,109350.0,109340.0,4.00515887]
[1748358505700,0.20318957,109350.0,109340.0,3.82725965]
[1748358505942,0.20318957,109350.0,109340.0,1.314342]
[1748358505943,0.25758957,109350.0,109340.0,1.314342]
[1748358506199,0.34864352,109350.0,109340.0,0.451509]
[1748358506460,0.34864352,109350.0,109340.0,0.97377492]
[1748358506681,0.25758957,109350.0,109340.0,0.97377492]
[1748358507609,0.23048957,109350.0,109340.0,0.97377492]
[1748358507847,0.23048957,109350.0,109340.0,1.06482887]
[1748358508095,0.20318957,109350.0,109340.0,1.06482887]
[1748358508574,0.20318957,109350.0,109340.0,2.61917087]
[1748358509614,0.20318957,109350.0,109340.0,2.23953987]
[1748358509854,0.20318957,109350.0,109340.0,2.21154592]
[1748358510085,0.20318957,109350.0,109340.0,2.24608794]
[1748358510544,0.20318957,109350.0,109340.0,2.06783994]
[1748358510776,0.20318957,109350.0,109340.0,1.94181194]
[1748358511000,0.22898957,109350.0,109340.0,0.44136]
[1748358511217,0.25478957,109350.0,109340.0,1.10450794]
[1748358511639,0.25478957,109350.0,109340.0,0.99816794]
[1748358511858,0.29424352,109350.0,109340.0,0.99816794]
[1748358512089,0.20318957,109350.0,109340.0,1.20469189]
[1748358512726,0.20318957,109350.0,109340.0,1.20269189]
[1748358512932,0.20318957,109350.0,109340.0,1.20469189]